[Event "Titled Tuesday Blitz February 28 Early 2023"]
[White "Aldokhin, Ivan"]
[Black "Lesbekova, Assel"]
[WhiteFideId "24115720"]
[BlackFideId "13713248"]
[WhiteElo "2322"]
[BlackElo "1799"]
[Result "1-0"]
[Round "01"]
[TimeControl "180+2"]
[Date "2023.02.28"]
[WhiteClock "0:00:13"]
[BlackClock "0:00:53"]

1. e4 {[%clk 0:02:59]}  d6 {[%clk 0:02:59]} 2. d4 {[%clk 0:02:58]}  e5 {[%clk 0:02:59]} 3. Nf3 {[%clk 0:02:53]}  exd4 {[%clk 0:02:57]} 4. Nxd4 {[%clk 0:02:52]}  Nf6 {[%clk 0:02:57]} 5. Nc3 {[%clk 0:02:52]}  Be7 {[%clk 0:02:57]} 6. h3 {[%clk 0:02:45]}  O-O {[%clk 0:02:57]} 7. g4 {[%clk 0:02:46]}  c5 {[%clk 0:02:54]} 8. Nf5 {[%clk 0:02:44]}  Nc6 {[%clk 0:02:52]} 9. Bg2 {[%clk 0:02:42]}  Be6 {[%clk 0:02:47]} 10. O-O {[%clk 0:02:37]}  Re8 {[%clk 0:02:40]} 11. Nxe7+ {[%clk 0:02:31]}  Qxe7 {[%clk 0:02:37]} 12. Bg5 {[%clk 0:02:27]}  h6 {[%clk 0:02:28]} 13. Bh4 {[%clk 0:02:27]}  Ne5 {[%clk 0:02:28]} 14. f4 {[%clk 0:02:22]}  Nc6 {[%clk 0:02:26]} 15. f5 {[%clk 0:02:01]}  Bc4 {[%clk 0:02:22]} 16. Re1 {[%clk 0:01:57]}  Qe5 {[%clk 0:02:18]} 17. Qd2 {[%clk 0:01:43]}  Qd4+ {[%clk 0:02:18]} 18. Qxd4 {[%clk 0:01:35]}  Nxd4 {[%clk 0:02:14]} 19. Rac1 {[%clk 0:01:35]}  Nd7 {[%clk 0:02:12]} 20. b3 {[%clk 0:01:33]}  Ba6 {[%clk 0:02:09]} 21. Kf2 {[%clk 0:01:29]}  g5 {[%clk 0:02:02]} 22. Bg3 {[%clk 0:01:24]}  Rac8 {[%clk 0:01:54]} 23. Nd5 {[%clk 0:01:17]}  Rc6 {[%clk 0:01:43]} 24. c3 {[%clk 0:01:16]}  Nb5 {[%clk 0:01:43]} 25. a4 {[%clk 0:01:14]}  Nc7 {[%clk 0:01:41]} 26. Nxc7 {[%clk 0:01:14]}  Rxc7 {[%clk 0:01:42]} 27. Bxd6 {[%clk 0:01:13]}  Rc6 {[%clk 0:01:42]} 28. e5 {[%clk 0:01:11]}  Rb6 {[%clk 0:01:40]} 29. b4 {[%clk 0:01:07]}  Bd3 {[%clk 0:01:32]} 30. b5 {[%clk 0:00:57]}  f6 {[%clk 0:01:23]} 31. Bc7 {[%clk 0:00:45]}  fxe5 {[%clk 0:01:23]} 32. Bxb6 {[%clk 0:00:43]}  Nxb6 {[%clk 0:01:24]} 33. Bxb7 {[%clk 0:00:40]}  Nxa4 {[%clk 0:01:20]} 34. c4 {[%clk 0:00:30]}  e4 {[%clk 0:01:17]} 35. Ra1 {[%clk 0:00:24]}  Nb2 {[%clk 0:01:09]} 36. Rxa7 {[%clk 0:00:24]}  Bxc4 {[%clk 0:01:08]} 37. Rxe4 {[%clk 0:00:22]}  Nd3+ {[%clk 0:01:03]} 38. Ke3 {[%clk 0:00:21]}  Ne5 {[%clk 0:00:56]} 39. b6 {[%clk 0:00:17]}  Bd3 {[%clk 0:00:53]} 40. Rxe5 {[%clk 0:00:12]}  Rxe5+ {[%clk 0:00:53]} 41. Kxd3 {[%clk 0:00:13]} 1-0


[Site "https://www.chess.com"]

[Event "Titled Tuesday Blitz February 28 Early 2023"]
[White "Koellner, Ruben Gideon"]
[Black "Rose, Felix"]
[WhiteFideId "12993093"]
[BlackFideId "5105722"]
[WhiteElo "2303"]
[BlackElo "2039"]
[Result "1-0"]
[Round "01"]
[TimeControl "180+2"]
[Date "2023.02.28"]
[WhiteClock "0:02:32"]
[BlackClock "0:02:29"]

1. d4 {[%clk 0:02:58]}  d5 {[%clk 0:02:44]} 2. Nf3 {[%clk 0:02:56]}  Nf6 {[%clk 0:02:44]} 3. Nbd2 {[%clk 0:02:55]}  c5 {[%clk 0:02:43]} 4. e3 {[%clk 0:02:54]}  cxd4 {[%clk 0:02:43]} 5. exd4 {[%clk 0:02:54]}  Nc6 {[%clk 0:02:43]} 6. c3 {[%clk 0:02:54]}  Bf5 {[%clk 0:02:42]} 7. Bb5 {[%clk 0:02:53]}  Rc8 {[%clk 0:02:38]} 8. Ne5 {[%clk 0:02:42]}  Qb6 {[%clk 0:02:35]} 9. Bxc6+ {[%clk 0:02:33]}  bxc6 {[%clk 0:02:34]} 10. g4 {[%clk 0:02:34]}  Bd3 {[%clk 0:02:29]} 11. Nxd3 {[%clk 0:02:32]} 1-0


[Site "https://www.chess.com"]

[Event "Titled Tuesday Blitz February 28 Early 2023"]
[White "Hartikainen, Jarmo"]
[Black "Janaszak, Dawid"]
[WhiteFideId "503134"]
[BlackFideId "1119206"]
[WhiteElo "2201"]
[BlackElo "2220"]
[Result "0-1"]
[Round "01"]
[TimeControl "180+2"]
[Date "2023.02.28"]
[WhiteClock "0:00:21"]
[BlackClock "0:01:23"]

1. e4 {[%clk 0:02:58]}  c5 {[%clk 0:02:57]} 2. c3 {[%clk 0:02:58]}  e5 {[%clk 0:02:56]} 3. Nf3 {[%clk 0:02:57]}  Nc6 {[%clk 0:02:56]} 4. d4 {[%clk 0:02:57]}  cxd4 {[%clk 0:02:56]} 5. cxd4 {[%clk 0:02:57]}  exd4 {[%clk 0:02:57]} 6. Nxd4 {[%clk 0:02:57]}  Nf6 {[%clk 0:02:57]} 7. Nc3 {[%clk 0:02:56]}  Bb4 {[%clk 0:02:57]} 8. f3 {[%clk 0:02:49]}  d5 {[%clk 0:02:56]} 9. Nxc6 {[%clk 0:02:40]}  bxc6 {[%clk 0:02:56]} 10. e5 {[%clk 0:02:35]}  Nd7 {[%clk 0:02:51]} 11. f4 {[%clk 0:02:30]}  O-O {[%clk 0:02:51]} 12. Bd2 {[%clk 0:02:28]}  Rb8 {[%clk 0:02:27]} 13. Bd3 {[%clk 0:02:22]}  Bc5 {[%clk 0:02:26]} 14. Qc2 {[%clk 0:02:10]}  Qh4+ {[%clk 0:02:17]} 15. g3 {[%clk 0:02:06]}  Qh5 {[%clk 0:02:17]} 16. Be2 {[%clk 0:01:50]}  Qh3 {[%clk 0:02:14]} 17. O-O-O {[%clk 0:01:41]}  Nb6 {[%clk 0:02:14]} 18. Na4 {[%clk 0:01:08]}  Nxa4 {[%clk 0:02:08]} 19. Qxa4 {[%clk 0:01:09]}  Bf5 {[%clk 0:02:02]} 20. Bc3 {[%clk 0:00:53]}  Qg2 {[%clk 0:01:54]} 21. Rhe1 {[%clk 0:00:53]}  Be3+ {[%clk 0:01:43]} 22. Bd2 {[%clk 0:00:51]}  Bf2 {[%clk 0:01:43]} 23. Rf1 {[%clk 0:00:44]}  c5 {[%clk 0:01:34]} 24. g4 {[%clk 0:00:33]}  Be4 {[%clk 0:01:25]} 25. Qa3 {[%clk 0:00:21]}  Bd4 {[%clk 0:01:23]} 0-1


[Site "https://www.chess.com"]

[Event "Titled Tuesday Blitz February 28 Early 2023"]
[White "Yaran, Siar"]
[Black "Kiseljova, Marya"]
[WhiteFideId "6323006"]
[BlackFideId "4155009"]
[WhiteElo "2191"]
[BlackElo "1807"]
[Result "1-0"]
[Round "01"]
[TimeControl "180+2"]
[Date "2023.02.28"]
[WhiteClock "0:00:14"]
[BlackClock "0:00:01"]

1. d4 {[%clk 0:03:00]}  e6 {[%clk 0:02:58]} 2. c4 {[%clk 0:03:01]}  Nf6 {[%clk 0:02:57]} 3. Nc3 {[%clk 0:03:01]}  Bb4 {[%clk 0:02:57]} 4. e3 {[%clk 0:03:02]}  O-O {[%clk 0:02:54]} 5. Bd3 {[%clk 0:03:01]}  Re8 {[%clk 0:02:51]} 6. Nf3 {[%clk 0:03:01]}  Bxc3+ {[%clk 0:02:48]} 7. bxc3 {[%clk 0:03:00]}  d6 {[%clk 0:02:48]} 8. O-O {[%clk 0:02:43]}  Nbd7 {[%clk 0:02:30]} 9. e4 {[%clk 0:02:41]}  e5 {[%clk 0:02:30]} 10. Re1 {[%clk 0:02:41]}  h6 {[%clk 0:02:17]} 11. h3 {[%clk 0:02:01]}  c6 {[%clk 0:01:52]} 12. Nh4 {[%clk 0:01:25]}  Nf8 {[%clk 0:01:47]} 13. Qf3 {[%clk 0:01:24]}  Qa5 {[%clk 0:01:22]} 14. Bb2 {[%clk 0:01:05]}  Be6 {[%clk 0:00:45]} 15. c5 {[%clk 0:01:01]}  dxc5 {[%clk 0:00:42]} 16. dxe5 {[%clk 0:00:59]}  N6d7 {[%clk 0:00:37]} 17. c4 {[%clk 0:00:58]}  Qa4 {[%clk 0:00:22]} 18. Nf5 {[%clk 0:00:43]}  Bxc4 {[%clk 0:00:15]} 19. Bxc4 {[%clk 0:00:26]}  Qxc4 {[%clk 0:00:16]} 20. Nd6 {[%clk 0:00:26]}  Qe6 {[%clk 0:00:09]} 21. Nxe8 {[%clk 0:00:26]}  Rxe8 {[%clk 0:00:10]} 22. Rab1 {[%clk 0:00:23]}  b6 {[%clk 0:00:09]} 23. Qa3 {[%clk 0:00:20]}  a5 {[%clk 0:00:09]} 24. f4 {[%clk 0:00:20]}  f6 {[%clk 0:00:05]} 25. exf6 {[%clk 0:00:20]}  Nxf6 {[%clk 0:00:06]} 26. f5 {[%clk 0:00:17]}  Qe7 {[%clk 0:00:05]} 27. e5 {[%clk 0:00:17]}  Nd5 {[%clk 0:00:05]} 28. e6 {[%clk 0:00:18]}  Nh7 {[%clk 0:00:03]} 29. Qg3 {[%clk 0:00:18]}  Nhf6 {[%clk 0:00:03]} 30. Rbd1 {[%clk 0:00:17]}  Kh8 {[%clk 0:00:03]} 31. Rd3 {[%clk 0:00:17]}  c4 {[%clk 0:00:03]} 32. Rf3 {[%clk 0:00:17]}  b5 {[%clk 0:00:03]} 33. Qg6 {[%clk 0:00:16]}  b4 {[%clk 0:00:03]} 34. Be5 {[%clk 0:00:17]}  c3 {[%clk 0:00:03]} 35. Rg3 {[%clk 0:00:16]}  Rg8 {[%clk 0:00:02]} 36. Rd3 {[%clk 0:00:14]}  a4 {[%clk 0:00:02]} 37. g4 {[%clk 0:00:13]}  b3 {[%clk 0:00:02]} 38. axb3 {[%clk 0:00:13]}  axb3 {[%clk 0:00:01]} 39. g5 {[%clk 0:00:14]} 1-0


[Site "https://www.chess.com"]

[Event "Titled Tuesday Blitz February 28 Early 2023"]
[White "Nugumanov, Bakhtiyar"]
[Black "Postma, Dinant"]
[WhiteFideId "13701797"]
[BlackFideId "1018612"]
[WhiteElo "2209"]
[BlackElo "2570"]
[Result "1/2-1/2"]
[Round "01"]
[TimeControl "180+2"]
[Date "2023.02.28"]
[WhiteClock "0:00:15"]
[BlackClock "0:00:08"]

1. e4 {[%clk 0:02:59]}  c5 {[%clk 0:02:50]} 2. Nf3 {[%clk 0:02:58]}  g6 {[%clk 0:02:47]} 3. d4 {[%clk 0:02:58]}  cxd4 {[%clk 0:02:47]} 4. Nxd4 {[%clk 0:02:59]}  Bg7 {[%clk 0:02:47]} 5. Nc3 {[%clk 0:02:59]}  Nc6 {[%clk 0:02:47]} 6. Be3 {[%clk 0:02:59]}  Nf6 {[%clk 0:02:46]} 7. Bc4 {[%clk 0:02:58]}  O-O {[%clk 0:02:45]} 8. Bb3 {[%clk 0:02:52]}  d5 {[%clk 0:02:40]} 9. exd5 {[%clk 0:02:51]}  Na5 {[%clk 0:02:39]} 10. O-O {[%clk 0:02:51]}  Nxb3 {[%clk 0:02:37]} 11. Nxb3 {[%clk 0:02:51]}  b6 {[%clk 0:02:35]} 12. d6 {[%clk 0:02:40]}  exd6 {[%clk 0:02:31]} 13. Qf3 {[%clk 0:02:37]}  Bg4 {[%clk 0:02:13]} 14. Qg3 {[%clk 0:02:36]}  Rc8 {[%clk 0:01:50]} 15. h3 {[%clk 0:02:34]}  Bf5 {[%clk 0:01:46]} 16. Nd4 {[%clk 0:02:34]}  Ne4 {[%clk 0:01:41]} 17. Nxe4 {[%clk 0:02:29]}  Bxe4 {[%clk 0:01:42]} 18. c3 {[%clk 0:02:22]}  Be5 {[%clk 0:01:30]} 19. Bf4 {[%clk 0:02:10]}  Qf6 {[%clk 0:01:26]} 20. Bxe5 {[%clk 0:02:01]}  dxe5 {[%clk 0:01:27]} 21. Ne2 {[%clk 0:01:48]}  Rfd8 {[%clk 0:01:26]} 22. Rfd1 {[%clk 0:01:43]}  h5 {[%clk 0:01:23]} 23. Qe3 {[%clk 0:01:30]}  Bb7 {[%clk 0:01:21]} 24. Ng3 {[%clk 0:01:17]}  Qc6 {[%clk 0:01:04]} 25. f3 {[%clk 0:01:11]}  Qe6 {[%clk 0:01:00]} 26. Ne4 {[%clk 0:01:00]}  Bxe4 {[%clk 0:00:59]} 27. Qxe4 {[%clk 0:01:01]}  Rxd1+ {[%clk 0:00:54]} 28. Rxd1 {[%clk 0:01:02]}  Qxa2 {[%clk 0:00:54]} 29. b4 {[%clk 0:00:37]}  Qe6 {[%clk 0:00:45]} 30. Rd5 {[%clk 0:00:23]}  Rxc3 {[%clk 0:00:45]} 31. Rxe5 {[%clk 0:00:23]}  Rc1+ {[%clk 0:00:40]} 32. Kh2 {[%clk 0:00:21]}  Qd6 {[%clk 0:00:37]} 33. f4 {[%clk 0:00:20]}  Rc8 {[%clk 0:00:35]} 34. b5 {[%clk 0:00:19]}  Kg7 {[%clk 0:00:30]} 35. Re7 {[%clk 0:00:19]}  Rc7 {[%clk 0:00:24]} 36. Re8 {[%clk 0:00:16]}  Qf6 {[%clk 0:00:20]} 37. Ra8 {[%clk 0:00:13]}  Rd7 {[%clk 0:00:20]} 38. Re8 {[%clk 0:00:09]}  Rd4 {[%clk 0:00:19]} 39. Qe5 {[%clk 0:00:06]}  Rxf4 {[%clk 0:00:15]} 40. Qb8 {[%clk 0:00:04]}  Rd4 {[%clk 0:00:10]} 41. Rg8+ {[%clk 0:00:04]}  Kh7 {[%clk 0:00:10]} 42. Rf8 {[%clk 0:00:03]}  Re4 {[%clk 0:00:05]} 43. Qg3 {[%clk 0:00:03]}  Kg7 {[%clk 0:00:04]} 44. Ra8 {[%clk 0:00:03]}  Qf4 {[%clk 0:00:05]} 45. Qxf4 {[%clk 0:00:03]}  Rxf4 {[%clk 0:00:06]} 46. Rxa7 {[%clk 0:00:04]}  Rb4 {[%clk 0:00:06]} 47. Rb7 {[%clk 0:00:04]}  Rxb5 {[%clk 0:00:07]} 48. Kg3 {[%clk 0:00:05]}  Kf6 {[%clk 0:00:07]} 49. Kf3 {[%clk 0:00:06]}  Rb3+ {[%clk 0:00:08]} 50. Kf2 {[%clk 0:00:06]}  b5 {[%clk 0:00:09]} 51. Rb6+ {[%clk 0:00:06]}  Kg7 {[%clk 0:00:08]} 52. Rb7 {[%clk 0:00:06]}  b4 {[%clk 0:00:09]} 53. h4 {[%clk 0:00:07]}  Kf8 {[%clk 0:00:08]} 54. Kg1 {[%clk 0:00:07]}  Rb2 {[%clk 0:00:08]} 55. Kh2 {[%clk 0:00:07]}  b3 {[%clk 0:00:09]} 56. Kh3 {[%clk 0:00:07]}  Rb1 {[%clk 0:00:09]} 57. Kh2 {[%clk 0:00:08]}  b2 {[%clk 0:00:08]} 58. g3 {[%clk 0:00:08]}  Ke8 {[%clk 0:00:09]} 59. Kg2 {[%clk 0:00:08]}  Kd8 {[%clk 0:00:09]} 60. Kh2 {[%clk 0:00:07]}  Kc8 {[%clk 0:00:09]} 61. Rb3 {[%clk 0:00:08]}  Kc7 {[%clk 0:00:09]} 62. Rb4 {[%clk 0:00:08]}  Kc6 {[%clk 0:00:10]} 63. Rb8 {[%clk 0:00:08]}  Kc5 {[%clk 0:00:10]} 64. Kg2 {[%clk 0:00:08]}  Kd4 {[%clk 0:00:10]} 65. Rd8+ {[%clk 0:00:09]}  Ke5 {[%clk 0:00:10]} 66. Re8+ {[%clk 0:00:09]}  Kf5 {[%clk 0:00:10]} 67. Rb8 {[%clk 0:00:10]}  f6 {[%clk 0:00:10]} 68. Rb5+ {[%clk 0:00:10]}  Ke6 {[%clk 0:00:10]} 69. Rb6+ {[%clk 0:00:10]}  Kd5 {[%clk 0:00:10]} 70. Rb8 {[%clk 0:00:11]}  g5 {[%clk 0:00:10]} 71. hxg5 {[%clk 0:00:10]}  fxg5 {[%clk 0:00:11]} 72. Rb7 {[%clk 0:00:10]}  Kc6 {[%clk 0:00:11]} 73. Rb8 {[%clk 0:00:11]}  Kc5 {[%clk 0:00:12]} 74. Rb7 {[%clk 0:00:09]}  Kd4 {[%clk 0:00:11]} 75. Rb8 {[%clk 0:00:09]}  Ke3 {[%clk 0:00:10]} 76. Re8+ {[%clk 0:00:07]}  Kd4 {[%clk 0:00:10]} 77. Rd8+ {[%clk 0:00:08]}  Ke5 {[%clk 0:00:10]} 78. Re8+ {[%clk 0:00:08]}  Kf5 {[%clk 0:00:11]} 79. Rb8 {[%clk 0:00:08]}  Kg4 {[%clk 0:00:11]} 80. Rb4+ {[%clk 0:00:09]}  Kf5 {[%clk 0:00:11]} 81. Rb8 {[%clk 0:00:10]}  Kf6 {[%clk 0:00:08]} 82. Rb6+ {[%clk 0:00:09]}  Ke5 {[%clk 0:00:08]} 83. Rb8 {[%clk 0:00:10]}  Ke4 {[%clk 0:00:07]} 84. Rb7 {[%clk 0:00:10]}  Ke3 {[%clk 0:00:07]} 85. Rb8 {[%clk 0:00:09]}  Re1 {[%clk 0:00:07]} 86. Rb3+ {[%clk 0:00:06]}  Ke4 {[%clk 0:00:03]} 87. Rxb2 {[%clk 0:00:07]}  Re3 {[%clk 0:00:03]} 88. Rb4+ {[%clk 0:00:07]}  Kf5 {[%clk 0:00:03]} 89. Rb5+ {[%clk 0:00:08]}  Re5 {[%clk 0:00:04]} 90. Rb2 {[%clk 0:00:08]}  Re4 {[%clk 0:00:04]} 91. Kf3 {[%clk 0:00:07]}  g4+ {[%clk 0:00:03]} 92. Kg2 {[%clk 0:00:07]}  Re5 {[%clk 0:00:03]} 93. Rb3 {[%clk 0:00:07]}  Ra5 {[%clk 0:00:04]} 94. Rb2 {[%clk 0:00:08]}  Kg5 {[%clk 0:00:04]} 95. Rc2 {[%clk 0:00:09]}  h4 {[%clk 0:00:04]} 96. gxh4+ {[%clk 0:00:10]}  Kxh4 {[%clk 0:00:05]} 97. Rb2 {[%clk 0:00:10]}  Ra3 {[%clk 0:00:05]} 98. Rc2 {[%clk 0:00:10]}  Rg3+ {[%clk 0:00:05]} 99. Kh2 {[%clk 0:00:10]}  Re3 {[%clk 0:00:05]} 100. Kg2 {[%clk 0:00:11]}  Rd3 {[%clk 0:00:05]} 101. Ra2 {[%clk 0:00:11]}  Rh3 {[%clk 0:00:05]} 102. Rb2 {[%clk 0:00:11]}  Rg3+ {[%clk 0:00:05]} 103. Kh2 {[%clk 0:00:11]}  Rd3 {[%clk 0:00:06]} 104. Kg2 {[%clk 0:00:11]}  Rd4 {[%clk 0:00:06]} 105. Ra2 {[%clk 0:00:11]}  Re4 {[%clk 0:00:06]} 106. Ra3 {[%clk 0:00:11]}  Re2+ {[%clk 0:00:05]} 107. Kg1 {[%clk 0:00:11]}  Rc2 {[%clk 0:00:06]} 108. Rb3 {[%clk 0:00:11]}  Kh5 {[%clk 0:00:06]} 109. Ra3 {[%clk 0:00:11]}  Kg5 {[%clk 0:00:06]} 110. Rb3 {[%clk 0:00:12]}  Kf4 {[%clk 0:00:06]} 111. Ra3 {[%clk 0:00:12]}  Re2 {[%clk 0:00:06]} 112. Rb3 {[%clk 0:00:12]}  Re4 {[%clk 0:00:06]} 113. Ra3 {[%clk 0:00:12]}  Re2 {[%clk 0:00:05]} 114. Rb3 {[%clk 0:00:12]}  Rd2 {[%clk 0:00:05]} 115. Ra3 {[%clk 0:00:13]}  Kg5 {[%clk 0:00:05]} 116. Rb3 {[%clk 0:00:13]}  Kh4 {[%clk 0:00:06]} 117. Ra3 {[%clk 0:00:13]}  Rb2 {[%clk 0:00:04]} 118. Rc3 {[%clk 0:00:12]}  Ra2 {[%clk 0:00:05]} 119. Rb3 {[%clk 0:00:13]}  g3 {[%clk 0:00:05]} 120. Rb8 {[%clk 0:00:13]}  Kh3 {[%clk 0:00:05]} 121. Rh8+ {[%clk 0:00:13]}  Kg4 {[%clk 0:00:06]} 122. Rg8+ {[%clk 0:00:14]}  Kf3 {[%clk 0:00:07]} 123. Rf8+ {[%clk 0:00:15]}  Ke3 {[%clk 0:00:07]} 124. Re8+ {[%clk 0:00:14]}  Kf3 {[%clk 0:00:07]} 125. Rf8+ {[%clk 0:00:15]}  Ke4 {[%clk 0:00:08]} 126. Re8+ {[%clk 0:00:15]}  Kf3 {[%clk 0:00:08]} 127. Rf8+ {[%clk 0:00:15]} 1/2-1/2


[Site "https://www.chess.com"]

[Event "Titled Tuesday Blitz February 28 Early 2023"]
[White "Tologon tegin, Semetei"]
[Black "Andreassen, Lars"]
[WhiteFideId "13800574"]
[BlackFideId "1504878"]
[WhiteElo "2247"]
[BlackElo "2119"]
[Result "1-0"]
[Round "01"]
[TimeControl "180+2"]
[Date "2023.02.28"]
[WhiteClock "0:01:01"]
[BlackClock "0:02:24"]

1. d4 {[%clk 0:02:50]}  d5 {[%clk 0:03:00]} 2. c4 {[%clk 0:02:48]}  e6 {[%clk 0:03:00]} 3. Nc3 {[%clk 0:02:48]}  c5 {[%clk 0:03:00]} 4. cxd5 {[%clk 0:02:47]}  cxd4 {[%clk 0:03:01]} 5. Qxd4 {[%clk 0:02:48]}  Nc6 {[%clk 0:03:00]} 6. Qd1 {[%clk 0:02:47]}  exd5 {[%clk 0:03:01]} 7. Qxd5 {[%clk 0:02:46]}  Bd7 {[%clk 0:03:01]} 8. Nf3 {[%clk 0:02:37]}  Nf6 {[%clk 0:03:01]} 9. Qb3 {[%clk 0:02:36]}  a6 {[%clk 0:02:59]} 10. Bg5 {[%clk 0:02:33]}  Be7 {[%clk 0:02:59]} 11. e3 {[%clk 0:02:24]}  O-O {[%clk 0:02:57]} 12. Be2 {[%clk 0:02:22]}  b5 {[%clk 0:02:56]} 13. O-O {[%clk 0:02:19]}  Rc8 {[%clk 0:02:55]} 14. a3 {[%clk 0:02:06]}  Na5 {[%clk 0:02:55]} 15. Qc2 {[%clk 0:02:03]}  Nc4 {[%clk 0:02:52]} 16. Rfd1 {[%clk 0:02:00]}  Qc7 {[%clk 0:02:52]} 17. Bxf6 {[%clk 0:01:55]}  Bxf6 {[%clk 0:02:50]} 18. Nd5 {[%clk 0:01:55]}  Qc6 {[%clk 0:02:41]} 19. Bxc4 {[%clk 0:01:48]}  bxc4 {[%clk 0:02:38]} 20. Nxf6+ {[%clk 0:01:47]}  gxf6 {[%clk 0:02:37]} 21. Rd4 {[%clk 0:01:41]}  Be6 {[%clk 0:02:36]} 22. Rh4 {[%clk 0:01:37]}  f5 {[%clk 0:02:35]} 23. Nd4 {[%clk 0:01:34]}  Qd5 {[%clk 0:02:32]} 24. Rh5 {[%clk 0:01:26]}  Rc5 {[%clk 0:02:30]} 25. Qc3 {[%clk 0:01:04]}  Rb8 {[%clk 0:02:26]} 26. Rg5+ {[%clk 0:01:02]}  Kf8 {[%clk 0:02:25]} 27. Nxe6+ {[%clk 0:01:02]}  Qxe6 {[%clk 0:02:23]} 28. Qh8+ {[%clk 0:01:01]}  Ke7 {[%clk 0:02:24]} 29. Qxb8 {[%clk 0:01:01]} 1-0


[Site "https://www.chess.com"]

[Event "Titled Tuesday Blitz February 28 Early 2023"]
[White "Marin Ramirez, Gerardo"]
[Black "Djokic, Mihailo"]
[WhiteFideId "3901068"]
[BlackFideId "976440"]
[WhiteElo "1997"]
[BlackElo "2294"]
[Result "0-1"]
[Round "01"]
[TimeControl "180+2"]
[Date "2023.02.28"]
[WhiteClock "0:00:02"]
[BlackClock "0:01:22"]

1. d4 {[%clk 0:02:58]}  Nf6 {[%clk 0:02:59]} 2. Nf3 {[%clk 0:02:57]}  g6 {[%clk 0:02:59]} 3. c4 {[%clk 0:02:57]}  Bg7 {[%clk 0:02:59]} 4. Nc3 {[%clk 0:02:56]}  d6 {[%clk 0:03:00]} 5. g3 {[%clk 0:02:56]}  O-O {[%clk 0:03:00]} 6. Bg2 {[%clk 0:02:56]}  Nc6 {[%clk 0:02:59]} 7. O-O {[%clk 0:02:54]}  a6 {[%clk 0:03:00]} 8. Qc2 {[%clk 0:02:50]}  Bf5 {[%clk 0:02:57]} 9. e4 {[%clk 0:02:49]}  Bg4 {[%clk 0:02:56]} 10. Be3 {[%clk 0:02:48]}  Nd7 {[%clk 0:02:50]} 11. d5 {[%clk 0:02:30]}  Nce5 {[%clk 0:02:47]} 12. Nxe5 {[%clk 0:02:28]}  Nxe5 {[%clk 0:02:44]} 13. Ne2 {[%clk 0:01:56]}  b5 {[%clk 0:02:34]} 14. cxb5 {[%clk 0:01:42]}  axb5 {[%clk 0:02:35]} 15. f3 {[%clk 0:01:35]}  Bd7 {[%clk 0:02:26]} 16. Nd4 {[%clk 0:01:19]}  Nc4 {[%clk 0:02:25]} 17. Bf2 {[%clk 0:01:19]}  Qc8 {[%clk 0:02:13]} 18. a4 {[%clk 0:01:08]}  e5 {[%clk 0:01:43]} 19. Nc6 {[%clk 0:00:55]}  Bxc6 {[%clk 0:01:41]} 20. dxc6 {[%clk 0:00:55]}  Qe6 {[%clk 0:01:36]} 21. axb5 {[%clk 0:00:48]}  Rab8 {[%clk 0:01:35]} 22. Rfc1 {[%clk 0:00:29]}  Nb6 {[%clk 0:01:30]} 23. Ra7 {[%clk 0:00:23]}  Rfc8 {[%clk 0:01:29]} 24. Bf1 {[%clk 0:00:13]}  d5 {[%clk 0:01:27]} 25. exd5 {[%clk 0:00:10]}  Qxd5 {[%clk 0:01:26]} 26. Qc5 {[%clk 0:00:07]}  Qxf3 {[%clk 0:01:24]} 27. Qe7 {[%clk 0:00:02]}  Nd5 {[%clk 0:01:22]} 0-1


[Site "https://www.chess.com"]

[Event "Titled Tuesday Blitz February 28 Early 2023"]
[White "Domingo Nunez, Alejandro"]
[Black "Ruge, Edison"]
[WhiteFideId "22245561"]
[BlackFideId "4401000"]
[WhiteElo "2230"]
[BlackElo "2175"]
[Result "1-0"]
[Round "01"]
[TimeControl "180+2"]
[Date "2023.02.28"]
[WhiteClock "0:01:01"]
[BlackClock "0:00:01"]

1. e4 {[%clk 0:03:00]}  e5 {[%clk 0:02:58]} 2. Nf3 {[%clk 0:03:00]}  Nc6 {[%clk 0:02:58]} 3. Bc4 {[%clk 0:03:00]}  Be7 {[%clk 0:02:56]} 4. O-O {[%clk 0:03:00]}  Nf6 {[%clk 0:02:56]} 5. d3 {[%clk 0:02:59]}  d6 {[%clk 0:02:56]} 6. a4 {[%clk 0:02:58]}  O-O {[%clk 0:02:55]} 7. Re1 {[%clk 0:02:58]}  h6 {[%clk 0:02:54]} 8. h3 {[%clk 0:02:51]}  Be6 {[%clk 0:02:52]} 9. Nc3 {[%clk 0:02:44]}  Na5 {[%clk 0:02:29]} 10. Bxe6 {[%clk 0:02:40]}  fxe6 {[%clk 0:02:25]} 11. d4 {[%clk 0:02:39]}  exd4 {[%clk 0:02:14]} 12. Nxd4 {[%clk 0:02:37]}  Qd7 {[%clk 0:02:13]} 13. Qd3 {[%clk 0:02:17]}  Nc6 {[%clk 0:01:48]} 14. Nxc6 {[%clk 0:02:11]}  Qxc6 {[%clk 0:01:42]} 15. e5 {[%clk 0:02:03]}  Nd5 {[%clk 0:01:08]} 16. Nxd5 {[%clk 0:01:51]}  Qxd5 {[%clk 0:00:58]} 17. Qc3 {[%clk 0:01:34]}  dxe5 {[%clk 0:00:18]} 18. Rxe5 {[%clk 0:01:34]}  Qd6 {[%clk 0:00:13]} 19. Qe1 {[%clk 0:01:31]}  Bh4 {[%clk 0:00:11]} 20. g3 {[%clk 0:01:28]}  Bf6 {[%clk 0:00:08]} 21. Rxe6 {[%clk 0:01:27]}  Qd5 {[%clk 0:00:07]} 22. c3 {[%clk 0:01:14]}  Qf3 {[%clk 0:00:05]} 23. Bf4 {[%clk 0:01:08]}  Rad8 {[%clk 0:00:02]} 24. Bxc7 {[%clk 0:01:04]}  Rd5 {[%clk 0:00:01]} 25. Qe2 {[%clk 0:01:01]} 1-0


[Site "https://www.chess.com"]